bitfinex/quotes_BTCUSD_20230113
["timestamp","ask_amount","ask_price","bid_price","bid_amount"]
[1673583517770,0.70547654,18862.0,18861.0,0.470803]
[1673583518011,0.70547654,18862.0,18861.0,0.770803]
[1673583519331,0.70547654,18862.0,18861.0,0.441]
[1673583519595,0.70547654,18862.0,18861.0,0.141]
[1673583519848,0.70547654,18862.0,18861.0,0.770803]
[1673583520358,0.00953597,18862.0,18861.0,0.77200186]
[1673583521124,0.00953597,18862.0,18861.0,0.770803]
[1673583521376,0.00953597,18862.0,18861.0,0.77200186]
[1673583521644,0.00953597,18862.0,18861.0,0.770803]
[1673583522406,0.66311164,18862.0,18861.0,0.441]
[1673583522692,0.66311164,18862.0,18861.0,0.141]
[1673583523661,0.66311164,18862.0,18861.0,0.14219886]
[1673583524422,0.66311164,18862.0,18861.0,0.141]
[1673583524907,0.66311164,18862.0,18861.0,0.14158709]
[1673583525146,0.66310817,18862.0,18861.0,0.141]
[1673583526144,0.0095325,18862.0,18861.0,0.141]
[1673583526382,0.0095325,18862.0,18861.0,0.470803]
[1673583526629,0.0095325,18862.0,18861.0,0.770803]
[1673583526876,0.0095325,18862.0,18861.0,0.77139009]
[1673583528617,0.0095325,18862.0,18861.0,0.9293217]
[1673583529870,0.0095325,18862.0,18861.0,0.77139009]
[1673583530111,0.0095325,18862.0,18861.0,0.9293217]
[1673583530353,0.0095325,18862.0,18861.0,1.16618439]
[1673583530602,0.0095325,18862.0,18861.0,0.92873461]
[1673583531107,0.0095325,18862.0,18861.0,1.1655973]
[1673583531587,0.0095325,18862.0,18861.0,1.22525317]
[1673583531831,0.0095325,18862.0,18861.0,1.22525343]
[1673583533070,0.0095325,18862.0,18861.0,0.59893161]
[1673583533334,0.56000033,18862.0,18861.0,0.29893161]
[1673583533586,0.56000033,18862.0,18861.0,0.141]
[1673583534103,0.56000033,18862.0,18861.0,0.14216826]
[1673583534353,0.56000033,18862.0,18861.0,0.29893161]
[1673583534642,0.56000033,18862.0,18861.0,0.59893161]
[1673583535367,0.56000033,18862.0,18861.0,0.141]
[1673583536100,0.56000033,18862.0,18861.0,0.44216826]
[1673583536358,0.56000033,18862.0,18861.0,0.60009987]
[1673583536606,0.56000033,18862.0,18861.0,0.44216826]
[1673583537357,0.0095325,18862.0,18861.0,0.60009987]
[1673583538347,0.00943664,18862.0,18861.0,0.60009987]
[1673583540096,0.00943664,18862.0,18861.0,0.90333668]
[1673583540560,0.00943664,18862.0,18861.0,0.83696256]
[1673583540805,0.00943664,18862.0,18861.0,0.60009987]
[1673583541320,0.00943664,18862.0,18861.0,0.83696256]
[1673583541572,0.00943664,18862.0,18861.0,0.60009987]
[1673583541785,0.00943664,18862.0,18861.0,0.90333715]
[1673583542289,0.00943664,18862.0,18861.0,0.60009987]
[1673583542534,0.00943664,18862.0,18861.0,0.83696256]
[1673583542849,0.00916664,18862.0,18861.0,0.83696256]
[1673583543115,0.00916664,18862.0,18861.0,0.60009987]
[1673583543624,0.00916664,18862.0,18861.0,0.83696256]
[1673583543899,0.94086592,18862.0,18861.0,0.29893161]
[1673583544159,1.39361707,18862.0,18861.0,0.141]
[1673583544417,1.53792669,18862.0,18861.0,0.141]
[1673583544670,1.53793088,18862.0,18861.0,0.141]
[1673583544915,0.88098839,18862.0,18858.0,0.16628135]
[1673583545163,0.88098839,18862.0,18858.0,0.00834974]
[1673583545164,0.0929,18859.0,18858.0,0.00834974]
[1673583545415,0.63300794,18859.0,18858.0,0.00834974]
[1673583545649,0.522703,18859.0,18858.0,0.00834974]
[1673583545901,1.04263236,18859.0,18858.0,0.00834974]
[1673583546169,0.94263236,18859.0,18858.0,0.00834974]
[1673583546409,0.62082936,18859.0,18858.0,0.01234974]
[1673583547408,1.05063236,18859.0,18858.0,0.01234974]
[1673583547904,0.72082936,18859.0,18858.0,0.01234974]
[1673583548155,1.05063236,18859.0,18858.0,0.01234974]
[1673583548643,0.72082936,18859.0,18858.0,0.01234974]
[1673583548893,1.05063236,18859.0,18858.0,0.01234974]
[1673583549162,0.95063236,18859.0,18858.0,0.01234974]
[1673583549440,0.62082936,18859.0,18858.0,0.01234974]
[1673583550670,1.05063236,18859.0,18858.0,0.01234974]
[1673583550912,0.93851336,18859.0,18858.0,0.01234974]
[1673583551188,0.72082936,18859.0,18858.0,0.01234974]
[1673583551455,1.05063236,18859.0,18858.0,0.01234974]
[1673583551707,0.62792936,18859.0,18858.0,0.01234974]
[1673583552186,0.95773236,18859.0,18858.0,0.01234974]
[1673583553433,0.79255964,18859.0,18858.0,0.01234974]
[1673583553687,1.40612492,18859.0,18858.0,0.01234974]
[1673583554257,1.05136828,18859.0,18858.0,0.01243604]
[1673583554465,1.05136828,18859.0,18858.0,0.01234974]
[1673583555452,1.40640053,18859.0,18858.0,0.01234974]
[1673583555976,1.07659753,18859.0,18858.0,0.01234974]
[1673583556219,1.40639918,18859.0,18858.0,0.01234974]
[1673583556482,1.2838161,18859.0,18858.0,0.01234974]
[1673583556710,1.18635382,18859.0,18858.0,0.01234974]
[1673583558716,0.9791339,18859.0,18858.0,0.01234974]
[1673583560233,1.6699933,18859.0,18858.0,0.01234974]
[1673583560476,0.9791339,18859.0,18858.0,0.01234974]
[1673583561013,1.53832374,18859.0,18858.0,0.01234974]
[1673583561239,1.66872479,18859.0,18858.0,0.01234974]
[1673583561727,0.9791339,18859.0,18858.0,0.01234974]
[1673583561966,1.43664339,18859.0,18858.0,0.01234974]
[1673583562939,1.43652327,18859.0,18858.0,0.01234974]
[1673583563183,1.43655763,18859.0,18858.0,0.01234974]
[1673583563430,1.08161249,18859.0,18858.0,0.01234974]
[1673583563943,1.43635154,18859.0,18858.0,0.01234974]
[1673583564976,1.43638432,18859.0,18858.0,0.01234974]
[1673583565472,1.43638432,18859.0,18858.0,0.01226202]
[1673583565727,1.43768535,18859.0,18858.0,0.01226202]
[1673583566529,0.98291352,18859.0,18858.0,0.01226202]
[1673583566799,0.00930103,18859.0,18858.0,0.01226202]
[1673583568836,0.00930103,18859.0,18858.0,0.34206502]
[1673583569082,0.00930103,18859.0,18858.0,0.01226202]
[1673583569394,0.64172865,18859.0,18858.0,0.01226202]
[1673583570362,0.64172865,18859.0,18858.0,0.01234832]
[1673583570624,0.64172865,18859.0,18858.0,0.01226202]
[1673583572344,0.00930103,18859.0,18858.0,0.11062832]
[1673583572595,0.00930103,18859.0,18858.0,0.54043132]
[1673583572844,0.00930103,18859.0,18858.0,1.10556132]
[1673583573353,0.00130103,18859.0,18858.0,1.10156132]
[1673583573844,0.01030103,18859.0,18858.0,1.10156132]
[1673583575663,0.01030103,18859.0,18858.0,1.44629293]
[1673583576084,0.01030103,18859.0,18858.0,1.68315562]
[1673583576326,0.00130103,18859.0,18858.0,1.68315562]
[1673583576724,0.00130103,18859.0,18858.0,3.16668642]
[1673583576993,0.00130103,18859.0,18858.0,2.49193922]
[1673583577961,0.00130103,18859.0,18858.0,2.37593922]
[1673583578182,0.00130103,18859.0,18858.0,2.51493922]
[1673583578419,0.00130103,18859.0,18858.0,2.8738695]
[1673583578664,0.00130103,18859.0,18858.0,2.7348695]
[1673583578894,0.00130103,18859.0,18858.0,2.47912514]
[1673583579142,0.00130103,18859.0,18858.0,2.87467107]
[1673583579844,0.00130103,18859.0,18858.0,2.47912514]
[1673583580090,0.00130103,18859.0,18858.0,2.21399514]
[1673583580328,0.00130103,18859.0,18858.0,2.87452951]
[1673583580563,0.00130103,18859.0,18858.0,2.47908514]
[1673583581063,0.00105943,18859.0,18858.0,2.47908514]
[1673583581981,0.00786723,18862.0,18858.0,2.47908514]
[1673583582211,0.00786723,18862.0,18861.0,0.51690117]
[1673583582441,0.00786723,18862.0,18861.0,1.14670417]
[1673583582676,0.00026723,18862.0,18861.0,1.14670417]
[1673583583930,0.00026723,18862.0,18861.0,1.38390092]
[1673583584120,0.00026723,18862.0,18861.0,1.25770417]
[1673583585294,0.00026723,18862.0,18861.0,1.56624323]
[1673583585768,0.0015647,18862.0,18861.0,1.56624323]
[1673583586017,0.0015647,18862.0,18861.0,1.2592781]
[1673583589132,0.0015647,18862.0,18861.0,1.3529781]
[1673583589381,0.0015647,18862.0,18861.0,0.89484693]
[1673583589869,0.0015647,18862.0,18861.0,0.99484693]
[1673583590384,0.0015647,18862.0,18861.0,0.628203]
[1673583590630,0.87707595,18862.0,18861.0,0.2047]
[1673583590884,0.66677101,18862.0,18861.0,0.111]
[1673583592110,0.99657401,18862.0,18861.0,0.111]
[1673583593083,0.66677101,18862.0,18861.0,0.111]
[1673583594085,0.99657401,18862.0,18861.0,0.111]
[1673583595075,0.66677101,18862.0,18861.0,0.111]
[1673583596054,0.99657401,18862.0,18861.0,0.111]
[1673583597536,0.66677101,18862.0,18858.0,0.3]
[1673583597786,1.23138982,18862.0,18858.0,0.3]
[1673583598062,1.23738982,18862.0,18861.0,0.009]
[1673583598307,1.10257401,18862.0,18861.0,0.009]
[1673583598565,1.09657401,18862.0,18858.0,0.3]
[1673583598825,0.1,18861.0,18858.0,0.3]
[1673583600345,1.12115429,18862.0,18858.0,0.3]
[1673583600599,1.12115429,18862.0,18858.0,0.53399138]
[1673583600818,1.33145923,18862.0,18858.0,0.53399138]
[1673583601105,0.70885608,18861.0,18858.0,0.53399138]
[1673583601350,0.1,18861.0,18858.0,0.53399138]
[1673583601600,0.66625292,18862.0,18858.0,0.53399138]
[1673583601601,0.0015647,18862.0,18859.0,0.329803]
[1673583601848,0.0015647,18862.0,18860.0,0.628315]
[1673583602103,0.0015647,18862.0,18861.0,0.329803]
[1673583602358,0.0015647,18862.0,18861.0,0.61548938]
[1673583602599,0.0015647,18862.0,18861.0,0.423498]
[1673583602849,0.0015647,18862.0,18861.0,0.82514203]
[1673583603597,0.0015647,18862.0,18861.0,1.0763732]
[1673583603843,0.0075647,18862.0,18861.0,0.92724203]
[1673583604089,0.0075647,18862.0,18861.0,1.0853732]
[1673583604594,0.0015647,18862.0,18861.0,1.07472917]
[1673583604836,0.0015647,18862.0,18861.0,0.937898]
[1673583605099,0.0015647,18862.0,18861.0,0.4931]
[1673583605350,0.72830941,18862.0,18860.0,0.15813117]
[1673583605595,0.72830941,18862.0,18859.0,0.1]
[1673583606097,0.00130056,18861.0,18859.0,0.25813117]
[1673583606355,0.00130056,18861.0,18859.0,0.10016419]
[1673583606602,0.00130056,18861.0,18859.0,0.1]
[1673583607381,0.00830056,18861.0,18859.0,0.4]
[1673583607627,0.00830056,18861.0,18860.0,0.329798]
[1673583608120,0.00830056,18861.0,18859.0,0.4]
[1673583608625,0.51957477,18860.0,18858.0,0.49532792]
[1673583608890,0.329798,18859.0,18856.0,2.78423117]
[1673583609136,0.6643737,18859.0,18856.0,0.15813117]
[1673583609381,0.66428782,18859.0,18856.0,0.15813117]
[1673583609641,0.66428782,18859.0,18855.0,0.40434276]
[1673583609888,0.75718782,18859.0,18856.0,0.14]
[1673583610138,0.54688288,18859.0,18856.0,0.14]
[1673583610387,0.1929,18859.0,18856.0,0.29813117]
[1673583610641,0.1,18859.0,18856.0,0.29813117]
[1673583611149,0.65417881,18859.0,18856.0,0.29813117]
[1673583611915,0.75417881,18859.0,18856.0,0.29813117]
[1673583612238,0.75417881,18859.0,18856.0,0.14]
[1673583612683,1.10899457,18859.0,18856.0,0.14]
[1673583612950,0.1,18858.0,18856.0,0.14]
[1673583613198,0.66505094,18858.0,18856.0,0.14]
[1673583613445,0.547946,18858.0,18856.0,0.14]
[1673583613703,0.547946,18858.0,18855.0,0.00901484]
[1673583613944,0.1,18856.0,18855.0,0.00901484]
[1673583614697,0.6619063,18857.0,18855.0,0.00901484]
[1673583616251,0.016,18856.0,18855.0,0.01301484]
[1673583616500,0.53995328,18856.0,18855.0,0.00901484]
[1673583616762,0.86975128,18856.0,18855.0,0.01301484]
[1673583617007,0.96975128,18856.0,18855.0,0.01301484]
[1673583617216,0.63995328,18856.0,18855.0,0.00901484]
[1673583617756,0.65595328,18856.0,18855.0,0.01301484]
[1673583618044,0.016,18856.0,18855.0,0.01309335]
[1673583618297,0.016,18856.0,18855.0,0.01301484]
[1673583618801,0.016,18856.0,18855.0,0.60798284]
[1673583619053,0.016,18856.0,18855.0,0.90814278]
[1673583619263,0.016,18856.0,18855.0,0.64281284]
[1673583620586,0.016,18856.0,18855.0,0.64416089]
[1673583620847,0.016,18856.0,18855.0,0.64281284]
[1673583621842,0.016,18856.0,18855.0,0.64416089]
[1673583622332,0.016,18856.0,18855.0,0.83136089]
[1673583622582,0.016,18856.0,18855.0,1.09653089]
[1673583625396,0.016,18856.0,18855.0,1.25466206]
[1673583626169,0.016,18856.0,18855.0,1.49185881]
[1673583626429,0.01730358,18856.0,18855.0,1.49185881]
[1673583626924,0.01730358,18856.0,18855.0,1.25466206]
[1673583627421,0.01730358,18856.0,18855.0,1.49185881]
[1673583627674,0.01730358,18856.0,18855.0,1.25466206]
[1673583628169,0.01730358,18856.0,18855.0,1.5669074]
[1673583628918,0.01730358,18856.0,18855.0,1.49185881]
[1673583630132,0.01730358,18856.0,18855.0,1.56691406]
[1673583631366,0.01730358,18856.0,18855.0,1.40878289]
[1673583631608,0.01730358,18856.0,18855.0,1.72504523]
[1673583632109,0.01730358,18856.0,18855.0,1.40678289]
[1673583632361,0.01730358,18856.0,18855.0,1.72304523]
[1673583632886,0.01730358,18856.0,18855.0,1.73598731]
[1673583634440,0.01730358,18856.0,18855.0,2.19748884]
[1673583634688,0.01730358,18856.0,18855.0,2.1610912]
[1673583635003,0.01396918,18856.0,18855.0,2.1610912]
[1673583635482,0.01396918,18856.0,18855.0,1.80216092]
[1673583636000,0.01396918,18856.0,18855.0,2.01136052]
[1673583637456,0.01396918,18856.0,18855.0,2.27650052]
[1673583637713,0.00130358,18856.0,18855.0,2.27250052]
[1673583637947,0.00230358,18856.0,18855.0,2.41150052]
[1673583638205,0.00130358,18856.0,18855.0,2.27250052]
[1673583638449,0.00130358,18856.0,18855.0,2.41150052]
[1673583638450,0.00230358,18856.0,18855.0,2.41150052]
[1673583641761,0.00230358,18856.0,18855.0,1.93713092]
[1673583642006,0.00230358,18856.0,18855.0,1.84343092]
[1673583642256,0.00230358,18856.0,18855.0,2.31780052]
[1673583642499,0.00230358,18856.0,18855.0,1.84343092]
[1673583643015,0.00230358,18856.0,18855.0,1.84597619]
[1673583644012,0.00230358,18856.0,18855.0,1.44993092]
[1673583644780,0.00230358,18856.0,18855.0,1.74993092]
[1673583645792,0.00230358,18856.0,18855.0,1.57711547]
[1673583646761,0.00230008,18856.0,18855.0,1.57711547]
[1673583647286,0.00230008,18856.0,18855.0,1.4187028]
[1673583647539,0.00230008,18856.0,18855.0,1.0889048]
[1673583647826,0.00230008,18856.0,18855.0,0.77187303]
[1673583648064,0.00230008,18856.0,18855.0,1.0889048]
[1673583648810,0.00230008,18856.0,18855.0,1.4187028]
[1673583649272,0.00230008,18856.0,18855.0,1.42027741]
[1673583649820,0.00230008,18856.0,18855.0,1.4187028]
[1673583650312,0.00230008,18856.0,18855.0,0.77344764]
[1673583650574,0.00230008,18856.0,18855.0,0.77187303]
[1673583650814,0.00230008,18856.0,18855.0,1.0889048]
[1673583651053,0.00230008,18856.0,18855.0,0.63048121]
[1673583652572,0.00230008,18856.0,18855.0,1.42027741]
[1673583652822,0.00230008,18856.0,18855.0,1.41872851]
[1673583653065,0.00230008,18856.0,18855.0,1.57711547]
[1673583653306,0.00230008,18856.0,18855.0,1.18092067]
[1673583653548,0.00230008,18856.0,18855.0,0.88084194]
[1673583653794,0.00230008,18856.0,18855.0,0.63050861]
[1673583654054,0.00230008,18856.0,18855.0,0.31756221]
[1673583654563,0.62677428,18856.0,18855.0,0.17856221]
[1673583654799,0.63977428,18856.0,18855.0,0.17856221]
[1673583655037,0.63977428,18856.0,18855.0,0.01995692]
[1673583655288,0.99870456,18856.0,18855.0,0.01995692]
[1673583655537,0.62677428,18856.0,18855.0,0.01995692]
[1673583655780,0.62677428,18856.0,18855.0,0.02395692]
[1673583655781,1.00770456,18856.0,18855.0,0.02395692]
[1673583657021,0.98570456,18856.0,18855.0,0.01995692]
[1673583657272,1.00770456,18856.0,18855.0,0.02995692]
[1673583657806,0.64877428,18856.0,18855.0,0.02995692]
[1673583658062,0.02330008,18856.0,18855.0,0.02995692]
[1673583659576,0.71202836,18856.0,18855.0,0.02995692]
[1673583660074,1.20909472,18856.0,18855.0,0.02995692]
[1673583661266,1.39649472,18856.0,18855.0,0.02995692]
[1673583662784,1.30279472,18856.0,18855.0,0.02995692]
[1673583663524,0.52036644,18856.0,18855.0,0.02995692]
[1673583664765,0.02330008,18856.0,18855.0,0.02995692]
[1673583666733,0.02323031,18856.0,18855.0,0.02995692]
[1673583666988,0.02329902,18856.0,18855.0,0.02995692]
[1673583667262,0.02329902,18856.0,18855.0,0.28856221]
[1673583667518,0.02329902,18856.0,18855.0,0.58856221]
[1673583667766,0.02329902,18856.0,18855.0,0.91836021]
[1673583668250,0.02329902,18856.0,18855.0,0.58856221]
[1673583668730,0.02329902,18856.0,18855.0,0.82645336]
[1673583669052,0.02329902,18856.0,18855.0,0.82652834]
[1673583669299,0.02329902,18856.0,18855.0,1.48430203]
[1673583669795,0.02329902,18856.0,18855.0,1.64268441]
[1673583670294,0.00129902,18856.0,18855.0,1.63268441]
[1673583670539,0.00229902,18856.0,18855.0,1.75968441]
[1673583673007,0.00229902,18856.0,18855.0,1.75960943]
[1673583673249,0.00229902,18856.0,18855.0,0.9490173]
[1673583673489,0.00229902,18856.0,18855.0,0.95044943]
[1673583673996,0.00229902,18856.0,18855.0,1.05044943]
[1673583674478,0.00229902,18856.0,18855.0,1.35044943]
[1673583676166,0.00229902,18856.0,18855.0,1.50891017]
[1673583676920,0.00229902,18856.0,18855.0,1.27106803]
[1673583677179,0.00229902,18856.0,18855.0,1.50895662]
[1673583677425,0.00229902,18856.0,18855.0,1.50752449]
[1673583677677,0.00229902,18856.0,18855.0,1.50773857]
[1673583678437,0.00229902,18856.0,18855.0,1.50781182]
[1673583678693,0.00229902,18856.0,18855.0,1.66612351]
[1673583679441,0.00229902,18856.0,18855.0,1.66590943]
[1673583680658,0.00229902,18856.0,18855.0,1.66707725]
[1673583681141,0.00229902,18856.0,18855.0,1.66590943]
[1673583681910,0.00229902,18856.0,18855.0,1.34887766]
[1673583682588,0.00229902,18856.0,18855.0,1.61405766]
[1673583684398,0.00229902,18856.0,18855.0,1.61431942]
[1673583687293,0.00230248,18856.0,18855.0,1.21804589]
[1673583687531,0.00230248,18856.0,18855.0,1.61490479]
[1673583689530,0.00230248,18856.0,18855.0,1.61464303]
[1673583689531,0.00166248,18856.0,18855.0,1.61464303]
[1673583690794,0.00166248,18856.0,18855.0,1.93215819]
[1673583691333,0.00166248,18856.0,18855.0,1.26697819]
[1673583691528,0.00166248,18856.0,18855.0,0.77847134]
[1673583692031,0.00166248,18856.0,18855.0,0.61972584]
[1673583692279,0.00166248,18856.0,18855.0,0.46095618]
[1673583692527,0.00166248,18856.0,18855.0,0.77847134]
[1673583693033,0.00166248,18856.0,18855.0,1.07847134]
[1673583693281,0.00166248,18856.0,18855.0,1.0787331]
[1673583693741,0.00166248,18856.0,18855.0,1.07847134]
[1673583694294,0.00166248,18856.0,18855.0,0.77847134]
[1673583694550,0.00166248,18856.0,18855.0,1.07847134]
[1673583695313,0.00166248,18856.0,18855.0,0.77847134]
[1673583695806,0.00166248,18856.0,18855.0,0.46095618]
[1673583696043,0.00166248,18856.0,18855.0,0.77847134]
[1673583696286,0.00166248,18856.0,18855.0,1.07847134]
[1673583696765,0.00166248,18856.0,18855.0,1.07979725]
[1673583697535,0.00166248,18856.0,18855.0,1.07982178]
[1673583698028,0.00166248,18856.0,18855.0,1.2385061]
[1673583698277,0.00166248,18856.0,18855.0,1.07852805]
[1673583698525,0.00166248,18856.0,18855.0,1.07985396]
[1673583699021,0.00166248,18856.0,18855.0,0.8416472]
[1673583699558,0.00166248,18856.0,18855.0,1.2385061]
[1673583700544,0.00166248,18856.0,18855.0,1.23718019]
[1673583700790,0.00166248,18856.0,18855.0,0.84032129]
[1673583701045,0.00166248,18856.0,18855.0,0.77859173]
[1673583703351,0.00166248,18856.0,18855.0,1.07859173]
[1673583704341,0.00166248,18856.0,18855.0,0.77859173]
[1673583705089,0.64072134,18856.0,18855.0,0.77859173]
[1673583705365,0.64072134,18856.0,18855.0,0.61995695]
[1673583705612,0.64072134,18856.0,18855.0,0.46107657]
[1673583705894,0.64072134,18856.0,18855.0,0.61995711]
[1673583706137,0.97051934,18856.0,18855.0,0.61995711]
[1673583706634,0.64072134,18856.0,18855.0,0.61995711]
[1673583707645,0.64071821,18856.0,18855.0,0.61995711]
[1673583709152,0.64071821,18856.0,18855.0,0.30583746]
[1673583709400,0.64071821,18856.0,18855.0,0.5441079]
[1673583710152,0.64071821,18856.0,18855.0,0.30583746]
[1673583710399,0.64071821,18856.0,18855.0,0.5441079]
[1673583711614,0.64071821,18856.0,18855.0,0.30583746]
[1673583711869,0.64071821,18856.0,18855.0,0.5441079]
[1673583712126,0.64071821,18856.0,18855.0,0.58513848]
[1673583712635,0.64071821,18856.0,18855.0,0.5441079]
[1673583713135,0.64071821,18856.0,18855.0,0.30583746]
[1673583713881,0.64071821,18856.0,18855.0,0.30716337]
[1673583714120,0.64064507,18856.0,18855.0,0.30716337]
[1673583714369,0.64064507,18856.0,18855.0,0.5441079]
[1673583714623,0.64064507,18856.0,18855.0,0.58513064]
[1673583716577,0.64064507,18856.0,18855.0,0.5441079]
[1673583717069,0.64064507,18856.0,18855.0,0.58533871]
[1673583717559,0.64064507,18856.0,18855.0,0.58533905]
[1673583717813,0.64064507,18856.0,18855.0,0.5441079]
[1673583718307,0.64064507,18856.0,18855.0,0.30583746]
[1673583719044,0.64064507,18856.0,18855.0,0.5441079]
[1673583719358,0.64064507,18856.0,18855.0,0.58533742]
[1673583720130,0.64064507,18856.0,18855.0,0.5384079]
[1673583720700,0.64064507,18856.0,18855.0,1.0384865]
[1673583720701,0.00158621,18856.0,18855.0,1.0384865]
[1673583723706,0.00158621,18856.0,18855.0,0.7384865]
[1673583724207,0.00158621,18856.0,18855.0,1.1384865]
[1673583726399,0.00158621,18856.0,18855.0,0.90021606]
[1673583726634,0.00158621,18856.0,18855.0,1.13855432]
[1673583727612,0.00158621,18856.0,18855.0,1.03855432]
[1673583727872,0.00158851,18856.0,18855.0,0.73855432]
[1673583728125,0.00158851,18856.0,18855.0,0.73847269]
[1673583728673,0.00158851,18856.0,18855.0,0.50013443]
[1673583729163,0.00158851,18856.0,18855.0,0.73852006]
[1673583729412,0.00158851,18856.0,18855.0,0.90013443]
[1673583729648,0.00158851,18856.0,18855.0,0.50013443]
[1673583729905,0.00158851,18856.0,18855.0,0.69708212]
[1673583730159,0.00158851,18856.0,18855.0,0.89699333]
[1673583730905,0.00158851,18856.0,18855.0,0.73858444]
[1673583731902,0.61822221,18856.0,18855.0,0.42106928]
[1673583732164,0.61822221,18856.0,18855.0,0.3001466]
[1673583732417,0.61822221,18856.0,18855.0,0.53859661]
[1673583735153,0.61822221,18856.0,18855.0,0.3001466]
[1673583736405,0.61822221,18856.0,18855.0,0.53859661]
[1673583737605,0.61822221,18856.0,18855.0,0.58596929]
[1673583738089,0.61822221,18856.0,18855.0,0.58610784]
[1673583738631,0.61822221,18856.0,18855.0,0.58596929]
[1673583741566,0.61822221,18856.0,18855.0,0.53859661]
[1673583742790,0.61822221,18856.0,18855.0,0.3001466]
[1673583743286,0.94802021,18856.0,18855.0,0.3001466]
[1673583743560,0.61822221,18856.0,18855.0,0.3001466]
[1673583744312,0.94802021,18856.0,18855.0,0.3001466]
[1673583744782,0.61822221,18856.0,18855.0,0.3001466]
[1673583745052,0.61322221,18856.0,18855.0,0.3001466]
[1673583745545,0.51777164,18857.0,18855.0,0.53859661]
[1673583745780,1.11615443,18857.0,18855.0,0.54422041]
[1673583746019,0.329798,18856.0,18855.0,0.54422041]
[1673583746270,1.11615443,18857.0,18855.0,0.58976549]
[1673583746507,0.95731307,18857.0,18855.0,0.54422041]
[1673583746760,0.95731307,18857.0,18855.0,0.41735896]
[1673583747009,0.95831307,18857.0,18855.0,0.54535896]
[1673583747265,0.69938279,18857.0,18855.0,0.54522041]
[1673583747518,0.329798,18856.0,18855.0,0.54522041]
[1673583747759,0.329798,18856.0,18855.0,0.60362786]
[1673583747997,1.05831307,18857.0,18855.0,0.60362786]
[1673583748280,0.00129948,18856.0,18855.0,0.54522041]
[1673583748536,0.00129948,18856.0,18855.0,0.76216727]
[1673583748782,0.00129948,18856.0,18855.0,0.63416727]
[1673583749022,0.00229948,18856.0,18855.0,0.76216727]
[1673583749758,0.00129948,18856.0,18855.0,0.63416727]
[1673583750006,0.02129948,18856.0,18855.0,0.63816727]
[1673583750516,0.02129948,18856.0,18855.0,0.49971726]
[1673583750758,0.02129948,18856.0,18855.0,1.09657616]
[1673583751515,0.02129948,18856.0,18855.0,0.779061]
[1673583751756,0.02129948,18856.0,18855.0,0.7734372]
[1673583752007,0.02129948,18856.0,18855.0,0.85362672]
[1673583752493,0.02129948,18856.0,18855.0,0.9470763]
[1673583752749,0.02129948,18856.0,18855.0,1.2122563]
[1673583754242,0.02129948,18856.0,18855.0,0.9470763]
[1673583754495,0.02129948,18856.0,18855.0,0.94728007]
[1673583755246,0.02129948,18856.0,18855.0,1.34436567]
[1673583755496,0.02129948,18856.0,18855.0,1.34431285]
[1673583755985,0.02129948,18856.0,18855.0,1.35071688]
[1673583756237,0.02129948,18856.0,18855.0,1.34431285]
[1673583756483,0.02129948,18856.0,18855.0,0.94728007]
[1673583757753,0.02129948,18856.0,18855.0,1.35005974]
[1673583757999,0.02129948,18856.0,18855.0,1.25005974]
[1673583758252,0.02129948,18856.0,18855.0,1.56763446]
[1673583759020,0.02129948,18856.0,18855.0,1.5678874]
[1673583763803,0.02129948,18856.0,18855.0,1.56763446]
[1673583764057,0.02129948,18856.0,18855.0,1.17068327]
[1673583764302,0.02129948,18856.0,18855.0,1.56763446]
[1673583764569,0.02129948,18856.0,18855.0,1.17068327]
[1673583765322,0.02129948,18856.0,18855.0,1.40885211]
[1673583765563,0.02123919,18856.0,18855.0,1.40885211]
[1673583766799,0.02123919,18856.0,18855.0,1.56763446]
[1673583767331,0.02123919,18856.0,18855.0,1.07950543]
[1673583768326,0.02123919,18856.0,18855.0,1.40930343]
[1673583768571,0.02123919,18856.0,18855.0,1.07950543]
[1673583768572,0.02129673,18856.0,18855.0,1.07950543]
[1673583769590,0.02129673,18856.0,18855.0,1.0790589]
[1673583769841,0.02129673,18856.0,18855.0,0.84088527]
[1673583770095,0.02129673,18856.0,18855.0,1.23783646]
[1673583770336,0.02129673,18856.0,18855.0,1.23828299]
[1673583771312,0.02129673,18856.0,18855.0,0.8413318]
[1673583771815,0.02129673,18856.0,18855.0,1.07944765]
[1673583772076,0.02129673,18856.0,18855.0,0.8413318]
[1673583772313,0.02129673,18856.0,18855.0,1.07944274]
[1673583772573,0.02129673,18856.0,18855.0,0.8413318]
[1673583772815,0.02129673,18856.0,18855.0,1.07944333]
[1673583773311,0.02129673,18856.0,18855.0,1.23828299]
[1673583773547,0.02129673,18856.0,18855.0,0.8413318]
[1673583774289,0.02129673,18856.0,18855.0,1.23828299]
[1673583775537,0.02129673,18856.0,18855.0,0.91467602]
[1673583775786,0.02129673,18856.0,18855.0,1.25041443]
[1673583776355,0.02129673,18856.0,18855.0,0.84752283]
[1673583776608,0.02129673,18856.0,18855.0,1.11270283]
[1673583777132,0.02129673,18856.0,18855.0,1.11814279]
[1673583777880,0.02129673,18856.0,18855.0,2.39460513]
[1673583778133,0.01712813,18856.0,18855.0,1.92023553]
[1673583779396,0.01712813,18856.0,18855.0,2.39611964]
[1673583780754,0.01712813,18856.0,18855.0,1.92023553]
[1673583784836,0.01712813,18856.0,18855.0,2.40243869]
[1673583785078,0.01712813,18856.0,18855.0,2.39568672]
[1673583787561,0.01712813,18856.0,18855.0,2.40229919]
[1673583788576,0.01712813,18856.0,18855.0,2.39568672]
[1673583788851,0.01712843,18856.0,18855.0,2.40265354]
[1673583789600,0.01712843,18856.0,18855.0,2.39568672]
[1673583789848,0.01712843,18856.0,18855.0,2.40215266]
[1673583791626,0.01712843,18856.0,18855.0,2.39568672]
[1673583791865,0.01712843,18856.0,18855.0,2.40185818]
[1673583792125,0.01712843,18856.0,18855.0,2.26115818]
[1673583792641,0.01712843,18856.0,18855.0,1.37984051]
[1673583792887,0.01712843,18856.0,18855.0,1.37938046]
[1673583793647,0.01712843,18856.0,18855.0,1.37984051]
[1673583795891,0.01712843,18856.0,18855.0,1.77635539]
[1673583796137,0.01712843,18856.0,18855.0,1.7763682]
[1673583797653,0.01712843,18856.0,18855.0,1.02978506]
[1673583797920,0.01712843,18856.0,18855.0,0.69998706]
[1673583798175,0.01712843,18856.0,18855.0,0.63792861]
[1673583798928,0.01704755,18856.0,18855.0,0.63792861]
[1673583799668,0.01704755,18856.0,18855.0,0.62069131]
[1673583799926,0.01704755,18856.0,18855.0,0.77959297]
[1673583800421,0.01704755,18856.0,18855.0,1.36799004]
[1673583800671,0.01704755,18856.0,18855.0,0.93819204]
[1673583800921,0.01704755,18856.0,18855.0,0.93856561]
[1673583801418,0.01704755,18856.0,18855.0,0.47934083]
[1673583801663,0.01704755,18856.0,18855.0,0.42093782]
[1673583801915,0.01704755,18856.0,18855.0,0.18299627]
[1673583802889,0.01704755,18856.0,18855.0,0.72093782]
[1673583803139,0.01704755,18856.0,18855.0,0.18299627]
[1673583804090,0.01704755,18856.0,18855.0,0.48299627]